bitfinex/quotes_BTCUSD_20250904
["timestamp","ask_amount","ask_price","bid_price","bid_amount"]
[1757014636219,4.76899316,110150.0,110140.0,0.00048529]
[1757014636983,4.76899316,110150.0,110140.0,0.00261529]
[1757014637418,0.18162005,110120.0,110100.0,0.02972]
[1757014637627,1.98334074,110110.0,110100.0,0.00052525]
[1757014637827,1.37581466,110110.0,110100.0,0.00052525]
[1757014638027,1.40313524,110110.0,110100.0,0.00265525]
[1757014638269,1.42007646,110110.0,110100.0,0.00265525]
[1757014638452,1.26643646,110110.0,110100.0,0.00265525]
[1757014638648,1.44451984,110110.0,110100.0,0.00265525]
[1757014638850,1.45743737,110110.0,110100.0,0.00265525]
[1757014639408,1.38749737,110110.0,110100.0,0.00664525]
[1757014639620,1.38749737,110110.0,110100.0,0.00864525]
[1757014639811,1.76218697,110110.0,110100.0,0.00864525]
[1757014640085,1.76218697,110110.0,110100.0,0.00565525]
[1757014640371,2.06826296,110110.0,110100.0,0.00565525]
[1757014640506,2.00160856,110110.0,110100.0,0.00565525]
[1757014640707,2.06559113,110110.0,110100.0,0.00352525]
[1757014640908,0.37990181,110100.0,110090.0,0.48693895]
[1757014641111,6.762576,110100.0,110090.0,0.44712117]
[1757014641325,7.35449199,110100.0,110090.0,0.44712117]
[1757014641582,7.38181931,110100.0,110090.0,0.44712117]
[1757014641737,7.39606866,110100.0,110090.0,0.44712117]
[1757014642303,7.02137906,110100.0,110090.0,0.44712117]
[1757014642701,3.79343048,110100.0,110090.0,0.44925117]
[1757014642884,3.78708069,110100.0,110090.0,0.44925117]
[1757014643082,3.63436069,110100.0,110090.0,0.44925117]
[1757014643427,3.78808069,110100.0,110090.0,0.44925117]
[1757014643634,3.64699915,110100.0,110090.0,0.44925117]
[1757014643841,3.49327915,110100.0,110090.0,0.44925117]
[1757014644042,2.58694583,110100.0,110090.0,0.45224117]
[1757014644256,2.6737618,110100.0,110090.0,0.44925117]
[1757014644417,2.67984171,110100.0,110090.0,0.44712117]
[1757014645428,2.67982156,110100.0,110090.0,0.44712117]
[1757014646173,2.66557221,110100.0,110090.0,0.44712117]
[1757014646759,2.42503624,110100.0,110090.0,0.44925117]
[1757014646960,2.54841465,110100.0,110090.0,0.44925117]
[1757014647540,2.55038465,110100.0,110090.0,0.44925117]
[1757014648537,2.55038465,110100.0,110090.0,0.40917022]
[1757014648538,2.61957224,110100.0,110090.0,0.40917022]
[1757014648743,2.67793876,110100.0,110090.0,0.40917022]
[1757014648948,2.72164598,110100.0,110090.0,0.40917022]
[1757014649168,2.73589574,110100.0,110090.0,0.40917022]
[1757014649377,2.12759808,110100.0,110090.0,0.40917022]
[1757014649719,2.73589574,110100.0,110090.0,0.40917022]
[1757014649853,2.58205574,110100.0,110090.0,0.40917022]
[1757014650047,2.58097829,110100.0,110090.0,0.41130022]
[1757014650251,2.58097829,110100.0,110090.0,0.40917022]
[1757014650252,2.57980323,110100.0,110090.0,0.40917022]
[1757014650577,2.58613807,110100.0,110090.0,0.40917022]
[1757014650951,2.63497953,110100.0,110090.0,0.40917022]
[1757014651156,2.13497953,110100.0,110090.0,0.40917022]
[1757014651359,2.22689552,110100.0,110090.0,0.40917022]
[1757014651796,2.51222068,110100.0,110090.0,0.41130022]
[1757014652003,2.66610068,110100.0,110090.0,0.41130022]
[1757014652627,2.57418469,110100.0,110090.0,0.41130022]
[1757014653901,2.54896538,110100.0,110090.0,0.41130022]
[1757014654409,2.36645334,110100.0,110090.0,0.41130022]
[1757014654615,2.51645334,110100.0,110090.0,0.41130022]
[1757014655306,2.52545334,110100.0,110090.0,0.41130022]
[1757014655524,2.52029334,110100.0,110090.0,0.41130022]
[1757014655738,2.52545334,110100.0,110090.0,0.41130022]
[1757014656179,2.52541334,110100.0,110090.0,0.41130022]
[1757014656402,3.05792538,110100.0,110090.0,0.40917022]
[1757014656595,3.05792538,110100.0,110090.0,0.41128022]
[1757014656800,3.14984137,110100.0,110090.0,0.41128022]
[1757014657030,2.2301209,110100.0,110090.0,0.41128022]
[1757014657317,2.70597376,110100.0,110090.0,0.41427022]
[1757014657547,2.4884064,110100.0,110090.0,0.41427022]
[1757014657772,1.8768861,110100.0,110090.0,0.41427022]
[1757014657996,1.35499889,110100.0,110090.0,0.59593976]
[1757014658216,1.35499889,110100.0,110090.0,0.62598976]
[1757014658429,1.47758732,110100.0,110090.0,0.62598976]
[1757014658865,1.65824036,110100.0,110090.0,0.62598976]
[1757014659097,2.04897066,110100.0,110090.0,0.62598976]
[1757014659317,2.08859569,110100.0,110090.0,0.44532022]
[1757014659542,2.06844079,110100.0,110090.0,0.41527022]
[1757014659769,2.06844079,110100.0,110090.0,0.41427022]
[1757014661178,2.06844079,110100.0,110090.0,0.41328022]
[1757014661179,1.56844079,110100.0,110090.0,0.41328022]
[1757014661429,1.12294079,110100.0,110090.0,0.41328022]
[1757014661650,1.12294079,110100.0,110090.0,0.41927022]
[1757014662076,1.12294079,110100.0,110090.0,0.60093976]
[1757014663417,1.12294079,110100.0,110090.0,0.41628022]
[1757014665008,1.12504079,110100.0,110090.0,0.41628022]
[1757014665219,1.12294079,110100.0,110090.0,0.41628022]
[1757014665574,1.48234149,110100.0,110090.0,0.41628022]
[1757014665784,1.49927099,110100.0,110090.0,0.41628022]
[1757014665987,1.50455099,110100.0,110090.0,0.41628022]
[1757014666185,1.50137747,110100.0,110090.0,0.41628022]
[1757014666593,2.00137747,110100.0,110090.0,0.41628022]
[1757014666892,2.03118527,110100.0,110090.0,0.41417022]
[1757014667102,2.42049844,110100.0,110090.0,0.41417022]
[1757014667321,2.45328951,110100.0,110090.0,0.41417022]
[1757014667545,2.07822401,110100.0,110090.0,0.41417022]
[1757014667753,4.00455155,110100.0,110090.0,0.41217022]
[1757014667970,4.05790042,110100.0,110090.0,0.40917022]
[1757014668178,4.10674188,110100.0,110090.0,0.41017022]
[1757014668376,4.10674188,110100.0,110090.0,0.41117022]
[1757014668581,4.11309537,110100.0,110090.0,0.40917022]
[1757014669349,4.02117938,110100.0,110090.0,0.40917022]
[1757014669505,3.28682362,110100.0,110090.0,0.40917022]
[1757014670835,3.30107292,110100.0,110090.0,0.40917022]
[1757014671239,3.32201174,110100.0,110090.0,0.40917022]
[1757014671447,3.70432762,110100.0,110090.0,0.40917022]
[1757014671652,3.79724361,110100.0,110090.0,0.40917022]
[1757014672335,3.29724361,110100.0,110090.0,0.40917022]
[1757014672571,3.69390215,110100.0,110090.0,0.40917022]
[1757014672779,3.74270651,110100.0,110090.0,0.40917022]
[1757014674645,3.92845721,110100.0,110090.0,0.40917022]
[1757014675296,3.77369721,110100.0,110090.0,0.40917022]
[1757014675515,3.92813721,110100.0,110090.0,0.40917022]
[1757014675971,3.87929285,110100.0,110090.0,0.40917022]
[1757014676185,3.87933285,110100.0,110090.0,0.40917022]
[1757014676402,4.42812639,110100.0,110090.0,0.40917022]
[1757014676628,4.42812597,110100.0,110090.0,0.40917022]
[1757014677591,4.4423761,110100.0,110090.0,0.40917022]
[1757014677824,4.4333761,110100.0,110090.0,0.40917022]
[1757014678025,4.4423761,110100.0,110090.0,0.39816995]
[1757014678238,4.49237173,110100.0,110090.0,0.38991974]
[1757014679909,4.33793173,110100.0,110090.0,0.38991974]
[1757014680377,4.40037574,110100.0,110090.0,0.38991974]
[1757014681230,4.39137668,110100.0,110090.0,0.38991974]
[1757014681371,3.89137668,110100.0,110090.0,0.38991974]
[1757014682255,3.35341684,110100.0,110090.0,0.38991974]
[1757014682485,3.52023969,110100.0,110090.0,0.38991974]
[1757014682738,3.51207023,110100.0,110090.0,0.38991974]
[1757014683104,3.58320382,110100.0,110090.0,0.38991974]
[1757014683629,3.40589664,110100.0,110090.0,0.38991974]
[1757014683814,3.51203023,110100.0,110090.0,0.38991974]
[1757014684165,3.85202954,110100.0,110090.0,0.38991974]
[1757014684417,3.87501672,110100.0,110090.0,0.38991974]
[1757014684575,3.44317598,110100.0,110090.0,0.38991974]
[1757014685089,3.83401672,110100.0,110090.0,0.38991974]
[1757014685297,3.81708217,110100.0,110090.0,0.38991974]
[1757014685504,3.81102541,110100.0,110090.0,0.38991974]
[1757014685737,3.84574518,110100.0,110090.0,0.38991974]
[1757014686109,3.91873236,110100.0,110090.0,0.38991974]
[1757014686322,4.41873236,110100.0,110090.0,0.38991974]
[1757014689685,4.41873282,110100.0,110090.0,0.38991974]
[1757014690441,4.41238306,110100.0,110090.0,0.38991974]
[1757014690640,4.41873301,110100.0,110090.0,0.38991974]
[1757014691310,3.91873301,110100.0,110090.0,0.38991974]
[1757014691491,5.25909929,110100.0,110090.0,0.38991974]
[1757014691696,5.41333929,110100.0,110090.0,0.38991974]
[1757014692056,5.40522667,110100.0,110090.0,0.38991974]
[1757014694109,5.38223949,110100.0,110090.0,0.38991974]
[1757014694497,5.41478921,110100.0,110090.0,0.38991974]
[1757014694920,5.38223949,110100.0,110090.0,0.38991974]
[1757014695201,5.41478986,110100.0,110090.0,0.38991974]
[1757014695343,4.2509948,110100.0,110090.0,0.38991974]
[1757014695597,4.70947087,110100.0,110090.0,0.38991974]
[1757014696209,5.46011841,110100.0,110090.0,0.38991974]
[1757014696401,5.96011841,110100.0,110090.0,0.38991974]
[1757014696535,6.03106787,110100.0,110090.0,0.38991974]
[1757014696742,6.00808069,110100.0,110090.0,0.38991974]
[1757014696943,6.05808069,110100.0,110090.0,0.38991974]
[1757014697344,6.0336672,110100.0,110090.0,0.38991974]
[1757014699349,8.33950855,110090.0,110080.0,0.0004]
[1757014699548,8.3431528,110090.0,110080.0,0.0004]
[1757014699759,8.33505582,110090.0,110080.0,0.0004]
[1757014700091,8.33509484,110090.0,110080.0,0.0004]
[1757014700622,8.34934688,110090.0,110080.0,0.0004]
[1757014700825,8.35134688,110090.0,110080.0,0.0004]
[1757014701022,8.85134688,110090.0,110080.0,0.0004]
[1757014701490,8.85134704,110090.0,110080.0,0.0004]
[1757014701698,8.91934704,110090.0,110080.0,0.0004]
[1757014701901,7.79337573,110090.0,110080.0,0.0004]
[1757014702856,8.03551832,110090.0,110080.0,0.0004]
[1757014703134,7.81419455,110090.0,110080.0,0.0004]
[1757014703514,7.81415455,110090.0,110080.0,0.0004]
[1757014705258,7.79926435,110090.0,110080.0,0.0004]
[1757014706496,7.29926435,110090.0,110080.0,0.0004]
[1757014707437,7.31881485,110090.0,110080.0,0.0004]
[1757014707659,6.14696755,110090.0,110080.0,0.0004]
[1757014707865,7.20153509,110090.0,110080.0,0.0004]
[1757014708077,7.20153509,110090.0,110080.0,0.00247]
[1757014708659,6.97459789,110090.0,110080.0,0.00247]
[1757014708800,6.96034585,110090.0,110080.0,0.00247]
[1757014709236,6.86908203,110090.0,110080.0,0.00247]
[1757014709453,5.83469926,110090.0,110080.0,0.00247]
[1757014709666,1.18111084,110090.0,110080.0,0.00546]
[1757014709857,1.17554696,110090.0,110080.0,0.00546]
[1757014710288,0.47472344,110090.0,110080.0,0.00546]
[1757014710496,1.07740169,110090.0,110080.0,0.03646]
[1757014710709,1.41740169,110090.0,110080.0,0.03646]
[1757014711337,1.40047081,110090.0,110080.0,0.03646]
[1757014711554,1.90147081,110090.0,110080.0,0.03646]
[1757014711994,1.41410004,110090.0,110080.0,0.03646]
[1757014712211,1.41210004,110090.0,110080.0,0.21814604]
[1757014712421,1.41210004,110090.0,110080.0,0.03646]
[1757014712626,1.41210004,110090.0,110080.0,0.59346981]
[1757014712912,1.41210004,110090.0,110080.0,0.41178377]
[1757014713123,1.41210004,110090.0,110080.0,0.59346981]
[1757014713363,0.6695505,110090.0,110080.0,0.59346981]
[1757014713590,0.65388,110090.0,110080.0,0.96879358]
[1757014714894,0.65388,110090.0,110080.0,0.96979358]
[1757014715349,0.5,110090.0,110080.0,0.96979358]
[1757014715560,0.5,110090.0,110080.0,0.21914604]
[1757014715783,0.65388,110090.0,110080.0,0.59646981]
[1757014716911,0.65388,110090.0,110080.0,0.97179358]
[1757014717555,0.65388,110090.0,110080.0,0.5961333]
[1757014717777,1.2105368,110090.0,110080.0,0.00547]
[1757014718025,1.23815155,110090.0,110080.0,0.00547]
[1757014718449,0.86316429,110090.0,110080.0,0.00547]
[1757014718897,1.65928155,110090.0,110080.0,0.0034]
[1757014719132,4.22879073,110090.0,110080.0,0.0034]
[1757014719558,4.21979073,110090.0,110080.0,0.0034]
[1757014719771,4.22879073,110090.0,110080.0,0.0034]
[1757014720003,4.01772798,110090.0,110080.0,0.0034]
[1757014720224,4.12753776,110090.0,110080.0,0.0034]
[1757014720478,4.11853776,110090.0,110080.0,0.0034]
[1757014720700,4.1354674,110090.0,110080.0,0.0034]
[1757014721351,4.1354674,110090.0,110080.0,0.0014]
[1757014721574,4.1354674,110090.0,110080.0,0.0004]
[1757014722221,3.6354674,110090.0,110080.0,0.0004]
[1757014723295,3.51304419,110090.0,110080.0,0.0004]
[1757014723503,3.50404419,110090.0,110080.0,0.0004]
[1757014723714,3.65816419,110090.0,110080.0,0.0004]
[1757014724756,3.65916419,110090.0,110080.0,0.0004]
[1757014725223,3.50504419,110090.0,110080.0,0.0004]
[1757014725465,3.65908419,110090.0,110080.0,0.0004]
[1757014726880,4.15908419,110090.0,110080.0,0.0004]
[1757014727415,4.15904419,110090.0,110080.0,0.0004]
[1757014727641,4.14479414,110090.0,110080.0,0.0004]
[1757014727888,4.15904548,110090.0,110080.0,0.0004]
[1757014728108,4.00504548,110090.0,110080.0,0.0004]
[1757014728351,4.15904548,110090.0,110080.0,0.0004]
[1757014728575,4.14558869,110090.0,110080.0,0.0004]
[1757014731144,4.0536727,110090.0,110080.0,0.0004]
[1757014731654,3.5536727,110090.0,110080.0,0.0004]
[1757014733036,3.57811169,110090.0,110080.0,0.0004]
[1757014733319,3.58657859,110090.0,110080.0,0.0004]
[1757014733721,3.43257859,110090.0,110080.0,0.0004]
[1757014733897,3.5983353,110090.0,110080.0,0.0004]
[1757014734307,3.4444953,110090.0,110080.0,0.0004]
[1757014734467,3.5982953,110090.0,110080.0,0.0004]
[1757014735696,3.57212725,110090.0,110080.0,0.0004]
[1757014736475,4.07212725,110090.0,110080.0,0.0004]
[1757014737089,3.91832725,110090.0,110080.0,0.0004]
[1757014737315,4.07204725,110090.0,110080.0,0.0004]
[1757014737890,4.06358035,110090.0,110080.0,0.0004]
[1757014738092,4.07205058,110090.0,110080.0,0.0004]
[1757014738354,4.11290267,110090.0,110080.0,0.0004]
[1757014738540,4.08626205,110090.0,110080.0,0.0004]
[1757014738747,4.08626205,110090.0,110080.0,0.00248]
[1757014739082,4.06331487,110090.0,110080.0,0.00248]
[1757014739525,4.06331487,110090.0,110080.0,0.0004]
[1757014739946,3.90959487,110090.0,110080.0,0.00248]
[1757014740352,3.70001564,110090.0,110080.0,0.00248]
[1757014740641,3.27689664,110090.0,110080.0,0.00248]
[1757014740892,2.87434039,110090.0,110080.0,0.00248]
[1757014741095,3.25245765,110090.0,110080.0,0.00248]
[1757014741298,3.25245765,110090.0,110080.0,0.0004]
[1757014741505,3.26392703,110090.0,110080.0,0.0004]
[1757014741729,2.76392703,110090.0,110080.0,0.0004]
[1757014742274,2.75245765,110090.0,110080.0,0.0004]
[1757014743461,2.79988382,110090.0,110080.0,0.0004]
[1757014743658,2.80835484,110090.0,110080.0,0.0004]
[1757014743884,2.80835483,110090.0,110080.0,0.0004]
[1757014744089,2.79988382,110090.0,110080.0,0.0004]
[1757014744288,2.90027298,110090.0,110080.0,0.0004]
[1757014746233,2.90663363,110090.0,110080.0,0.0004]
[1757014746705,3.03164637,110090.0,110080.0,0.0004]
[1757014746914,3.25295363,110090.0,110080.0,0.0004]
[1757014747126,3.40651363,110090.0,110080.0,0.0004]
[1757014747354,3.43909616,110090.0,110080.0,0.0004]
[1757014749367,3.41465717,110090.0,110080.0,0.0004]
[1757014750390,3.40565717,110090.0,110080.0,0.0004]
[1757014751501,2.81374118,110090.0,110080.0,0.0004]
[1757014755404,2.82274118,110090.0,110080.0,0.0004]
[1757014756205,2.87153035,110090.0,110080.0,0.0004]
[1757014756409,3.37153035,110090.0,110080.0,0.0004]
[1757014757606,3.37159865,110090.0,110080.0,0.0004]
[1757014757859,3.46351464,110090.0,110080.0,0.0004]
[1757014761626,2.96351464,110090.0,110080.0,0.0004]
[1757014763169,2.49148691,110090.0,110080.0,0.00254]
[1757014763384,2.86849417,110090.0,110080.0,0.00254]
[1757014763646,2.71803417,110090.0,110080.0,0.00254]
[1757014763861,2.87159417,110090.0,110080.0,0.00254]
[1757014764296,2.49660691,110090.0,110080.0,0.00254]
[1757014764512,2.96351016,110090.0,110080.0,0.00254]
[1757014764728,2.80995016,110090.0,110080.0,0.00254]
[1757014764944,2.96351016,110090.0,110080.0,0.00254]
[1757014767028,3.46351016,110090.0,110080.0,0.00254]
[1757014767240,3.30995016,110090.0,110080.0,0.00254]
[1757014767450,3.46351016,110090.0,110080.0,0.00254]
[1757014767573,3.46351016,110090.0,110080.0,0.0004]
[1757014768018,3.46352713,110090.0,110080.0,0.0004]
[1757014768222,3.44927566,110090.0,110080.0,0.0004]
[1757014769460,3.29571566,110090.0,110080.0,0.0004]
[1757014769666,3.35735967,110090.0,110080.0,0.0004]
[1757014771195,3.37161107,110090.0,110080.0,0.0004]
[1757014771393,3.36523721,110090.0,110080.0,0.0004]
[1757014771598,3.37161491,110090.0,110080.0,0.0004]
[1757014771799,2.87161491,110090.0,110080.0,0.0004]
[1757014772017,2.9635309,110090.0,110080.0,0.0004]
[1757014772828,2.93094837,110090.0,110080.0,0.0004]
[1757014773029,3.30593563,110090.0,110080.0,0.0004]
[1757014773289,2.55596111,110090.0,110080.0,1e-08]
[1757014773508,1.09930078,110080.0,110070.0,0.0004]
[1757014773749,7.30091935,110080.0,110070.0,0.0004]
[1757014773975,7.35002514,110080.0,110070.0,0.0004]
[1757014774411,3.60383288,110080.0,110070.0,0.0004]
[1757014774625,2.14174592,110080.0,110070.0,0.00254]
[1757014774847,2.16108964,110080.0,110070.0,0.00553]
[1757014775059,2.31061409,110080.0,110070.0,0.00553]
[1757014775278,2.31061409,110080.0,110070.0,0.00254]
[1757014776700,2.28074683,110080.0,110070.0,0.00254]
[1757014776913,1.83615101,110080.0,110070.0,0.00553]
[1757014777137,2.48137457,110080.0,110070.0,0.00553]
[1757014777602,2.51400694,110080.0,110070.0,0.00553]
[1757014778350,2.51402903,110080.0,110070.0,0.00553]
[1757014778553,2.35906903,110080.0,110070.0,0.00553]
[1757014778775,2.37998724,110080.0,110070.0,0.00553]
[1757014779342,2.22486724,110080.0,110070.0,0.00553]
[1757014779575,2.22508793,110080.0,110070.0,0.00254]
[1757014779790,2.76063588,110080.0,110070.0,0.0004]
[1757014780018,2.08127275,110080.0,110070.0,0.0004]
[1757014780245,2.83168865,110080.0,110070.0,0.00241]
[1757014780452,2.92998049,110080.0,110070.0,0.0004]
[1757014780663,2.85900332,110080.0,110070.0,0.0004]
[1757014781097,2.85262747,110080.0,110070.0,0.0004]
[1757014781519,2.19754747,110080.0,110070.0,0.00241]
[1757014781754,2.36166747,110080.0,110070.0,0.00241]
[1757014783604,2.38615083,110080.0,110070.0,0.00241]
[1757014784064,1.63047493,110080.0,110070.0,0.00241]
[1757014784263,2.38089083,110080.0,110070.0,0.00241]
[1757014784718,2.35790365,110080.0,110070.0,0.00241]
[1757014785146,2.20804365,110080.0,110070.0,0.00241]
[1757014785349,2.36312365,110080.0,110070.0,0.00241]
[1757014785562,2.36312365,110080.0,110070.0,0.0004]
[1757014785776,2.36312365,110080.0,110070.0,0.00241]
[1757014786154,2.36308365,110080.0,110070.0,0.00241]
[1757014786390,1.43142893,110080.0,110070.0,0.00241]
[1757014786584,1.28051593,110080.0,110070.0,0.0054]
[1757014786779,1.87725832,110080.0,110070.0,0.0054]
[1757014786961,1.86300698,110080.0,110070.0,0.0054]
[1757014787163,2.40750793,110080.0,110070.0,0.0054]
[1757014787761,2.38535884,110080.0,110070.0,0.0054]
[1757014788602,2.01015089,110080.0,110070.0,0.0054]
[1757014788863,2.38535884,110080.0,110070.0,0.0054]
[1757014789312,2.00115089,110080.0,110070.0,0.0054]
[1757014789513,2.37635884,110080.0,110070.0,0.00241]
[1757014790122,2.38161884,110080.0,110070.0,0.00241]
[1757014790585,2.22131884,110080.0,110070.0,0.00241]
[1757014790793,2.37631884,110080.0,110070.0,0.00241]
[1757014791318,1.8381092,110080.0,110070.0,0.00241]
[1757014791516,1.8381092,110080.0,110070.0,0.0054]
[1757014791517,1.21808383,110080.0,110070.0,0.0054]
[1757014791719,1.37312383,110080.0,110070.0,0.38060795]
[1757014791944,1.3536214,110080.0,110070.0,0.5623105]
[1757014792524,0.8536214,110080.0,110070.0,0.5623105]
[1757014792938,0.8535814,110080.0,110070.0,0.18710255]
[1757014793155,0.8535814,110080.0,110070.0,0.37761795]
[1757014793359,0.8445814,110080.0,110070.0,0.38060795]
[1757014794037,0.8445814,110080.0,110070.0,0.38160795]
[1757014794244,0.8445814,110080.0,110070.0,0.38460795]
[1757014794473,0.8445814,110080.0,110070.0,0.0094]
[1757014794820,0.8445814,110080.0,110070.0,0.0084]
[1757014795236,0.8445814,110080.0,110070.0,0.0104]
[1757014795435,0.8445814,110080.0,110070.0,0.19210255]
[1757014795638,0.32285536,110080.0,110070.0,0.5673105]
[1757014795843,1.59496639,110080.0,110070.0,0.00741]
[1757014796245,0.72833025,110080.0,110070.0,0.00741]
[1757014796529,1.21720025,110080.0,110070.0,0.00741]
[1757014796749,1.7563682,110080.0,110070.0,0.00741]
[1757014796925,1.33929049,110080.0,110070.0,0.0104]
[1757014797589,1.33929049,110080.0,110070.0,0.01267128]
[1757014798928,1.33929049,110080.0,110070.0,0.19437383]
[1757014799226,1.33929049,110080.0,110070.0,0.19210255]
[1757014799493,0.85264445,110080.0,110070.0,0.5673105]
[1757014799697,0.66756445,110080.0,110070.0,0.5673105]
[1757014799906,0.66392,110080.0,110070.0,0.5673105]
[1757014800337,0.84560604,110080.0,110070.0,0.38560795]
[1757014800567,0.84186604,110080.0,110070.0,0.00741]
[1757014800998,1.96727183,110080.0,110070.0,0.0054]
[1757014801218,4.00974871,110080.0,110070.0,0.0054]
[1757014801430,3.57891331,110080.0,110070.0,0.0054]
[1757014801655,3.25064551,110080.0,110070.0,0.0054]
[1757014801866,2.44418651,110080.0,110070.0,0.0034]
[1757014802074,2.42119933,110080.0,110070.0,0.0034]
[1757014802278,2.42127933,110080.0,110070.0,0.0034]
[1757014802668,2.42127933,110080.0,110070.0,0.0004]
[1757014803342,1.32102771,110070.0,110060.0,0.0004]
[1757014803554,6.5845674,110070.0,110060.0,0.0004]
[1757014803798,3.6012408,110070.0,110060.0,0.0004]
[1757014804017,1.3052039,110070.0,110060.0,0.0004]
[1757014804295,1.43287686,110070.0,110060.0,0.0004]
[1757014804504,1.57435286,110070.0,110060.0,0.0004]
[1757014804716,1.77435286,110070.0,110060.0,0.0004]
[1757014804919,1.5704436,110070.0,110060.0,0.0004]
[1757014805129,1.7254436,110070.0,110060.0,0.0004]
[1757014805538,1.31735765,110070.0,110060.0,0.0004]
[1757014805771,1.6925656,110070.0,110060.0,0.0004]
[1757014806206,1.6755663,110070.0,110060.0,0.0004]
[1757014806417,0.70528635,110070.0,110060.0,0.00246]
[1757014806622,0.52170255,110070.0,110060.0,0.00246]
[1757014806816,0.67770255,110070.0,110060.0,0.00246]
[1757014807053,1.0529105,110070.0,110060.0,0.00246]
[1757014807268,1.5529105,110070.0,110060.0,0.00246]
[1757014807653,1.17670255,110070.0,110060.0,0.00246]
[1757014807860,1.17670255,110070.0,110060.0,0.00573148]
[1757014808089,1.17670255,110070.0,110060.0,0.00773148]
[1757014808302,1.17868255,110070.0,110060.0,0.00773148]
[1757014808513,1.17868255,110070.0,110060.0,0.0034]
[1757014808514,1.64887649,110070.0,110060.0,0.0034]
[1757014808723,2.24587034,110070.0,110060.0,0.0034]
[1757014809112,1.86273634,110070.0,110060.0,0.0034]
[1757014809557,1.47852839,110070.0,110060.0,0.0034]
[1757014809769,1.88106645,110070.0,110060.0,0.0034]
[1757014811356,1.72606645,110070.0,110060.0,0.0034]
[1757014811545,1.38110645,110070.0,110060.0,0.0034]
[1757014811742,1.93711639,110070.0,110060.0,0.0034]
[1757014812010,2.11815318,110070.0,110060.0,0.0034]
[1757014812217,2.10115639,110070.0,110060.0,0.0034]
[1757014812436,2.02623592,110070.0,110060.0,0.0034]
[1757014812664,2.01723592,110070.0,110060.0,0.0024]
[1757014812863,2.01723592,110070.0,110060.0,0.0004]
[1757014813482,2.0002404,110070.0,110060.0,0.0004]
[1757014813691,1.3587338,110070.0,110060.0,0.0004]
[1757014813911,2.1091497,110070.0,110060.0,0.0004]
[1757014814355,2.01715371,110070.0,110060.0,0.0004]
[1757014814576,1.19375063,110070.0,110060.0,0.0004]
[1757014814767,1.39700527,110070.0,110060.0,0.0004]
[1757014814901,1.55196527,110070.0,110060.0,0.0004]
[1757014816919,2.05196527,110070.0,110060.0,0.0004]
[1757014817549,2.06096527,110070.0,110060.0,0.0004]
[1757014817757,2.43617322,110070.0,110060.0,0.0004]
[1757014817977,2.96775124,110070.0,110060.0,0.0004]
[1757014818170,3.02951418,110070.0,110060.0,0.0004]
[1757014818377,2.99686958,110070.0,110060.0,0.0004]
[1757014818588,3.02951418,110070.0,110060.0,0.0004]
[1757014818977,3.47501418,110070.0,110060.0,0.0004]
[1757014819646,3.46701418,110070.0,110060.0,0.0004]
[1757014820785,2.93684623,110070.0,110060.0,0.0004]
[1757014820992,2.85393024,110070.0,110060.0,0.0004]
[1757014821197,2.97608564,110070.0,110060.0,0.0004]
[1757014821399,3.17608564,110070.0,110060.0,0.0004]
[1757014821705,2.66708564,110070.0,110060.0,0.0004]
[1757014822100,2.72287242,110070.0,110060.0,0.0004]
[1757014822533,2.66708564,110070.0,110060.0,0.0004]
[1757014822906,2.52128564,110070.0,110060.0,0.0004]
[1757014823121,2.64672805,110070.0,110060.0,0.0004]
[1757014823699,2.61022373,110070.0,110060.0,0.0004]
[1757014825150,2.45546373,110070.0,110060.0,0.0004]
[1757014825355,2.61014373,110070.0,110060.0,0.0004]
[1757014825752,2.63811417,110070.0,110060.0,0.0004]
[1757014826352,1.40803983,110070.0,110060.0,0.00246]
[1757014826560,1.20932401,110070.0,110060.0,0.00246]
[1757014826774,0.71903266,110070.0,110060.0,0.00772148]
[1757014826981,0.86479266,110070.0,110060.0,0.00772148]
[1757014827134,1.20479266,110070.0,110060.0,0.00772148]
[1757014827332,1.57900061,110070.0,110060.0,0.00772148]
[1757014827671,1.57900061,110070.0,110060.0,0.00246]
[1757014827868,1.57900061,110070.0,110060.0,0.00545]
[1757014828094,1.20379266,110070.0,110060.0,0.00246]
[1757014828282,1.57900061,110070.0,110060.0,0.00446]
[1757014828440,1.57900061,110070.0,110060.0,0.00673148]
[1757014828882,1.57900061,110070.0,110060.0,0.00773148]
[1757014829290,1.57900061,110070.0,110060.0,0.00546]
[1757014829850,1.57904061,110070.0,110060.0,0.00773148]
[1757014830060,1.04903266,110070.0,110060.0,0.01072148]
[1757014830243,1.57904061,110070.0,110060.0,0.01072148]
[1757014830912,1.57904061,110070.0,110060.0,0.00773148]
[1757014831329,1.57904061,110070.0,110060.0,0.00546]
[1757014831653,0.89733806,110070.0,110060.0,0.00546]
[1757014832084,0.71283266,110070.0,110060.0,0.00546]
[1757014832284,1.08804061,110070.0,110060.0,0.00546]
[1757014833044,1.08804061,110070.0,110060.0,0.00773148]
[1757014833658,0.71283266,110070.0,110060.0,0.00773148]
[1757014833862,1.08804061,110070.0,110060.0,0.00773148]
[1757014834453,0.55803266,110070.0,110060.0,0.56764849]
[1757014834680,0.34,110070.0,110060.0,0.94058496]
[1757014834886,0.52277214,110080.0,110060.0,0.56537701]
[1757014835098,0.33646255,110070.0,110060.0,0.56537701]
[1757014835708,0.33646255,110070.0,110060.0,0.56437701]
[1757014836372,0.7116705,110070.0,110060.0,0.18916906]
[1757014836575,1.2116705,110070.0,110060.0,0.18916906]
[1757014837559,1.02996795,110070.0,110060.0,0.18916906]
[1757014837919,0.87520795,110070.0,110060.0,0.19016906]
[1757014838121,0.65464,110070.0,110060.0,0.19016906]
[1757014838564,0.5,110070.0,110060.0,0.19016906]
[1757014838764,0.5,110070.0,110060.0,0.37702906]
[1757014838982,0.5,110070.0,110060.0,1.12744496]
[1757014839224,0.5,110070.0,110060.0,0.37702906]
[1757014839434,0.5,110070.0,110060.0,0.59651701]
[1757014839683,0.5,110070.0,110060.0,0.74923701]
[1757014839897,0.5,110070.0,110060.0,0.38102906]
[1757014840100,0.5,110070.0,110060.0,0.34888906]
[1757014840319,0.87520795,110070.0,110060.0,0.34892906]
[1757014840994,0.87520795,110070.0,110060.0,0.19416906]
[1757014841203,1.0569105,110070.0,110060.0,0.34589906]
[1757014841622,0.68170255,110070.0,110060.0,0.34589906]
[1757014842057,0.18170255,110070.0,110060.0,0.34589906]
[1757014842286,0.34865625,110080.0,110070.0,0.18170255]
[1757014842466,0.95358099,110080.0,110070.0,0.18170255]
[1757014843313,0.57839025,110080.0,110070.0,0.18367255]
[1757014843514,0.95358099,110080.0,110070.0,0.18270255]
[1757014843721,0.95358099,110080.0,110070.0,0.18467255]
[1757014843934,0.94458099,110080.0,110070.0,0.18467255]